[Event "Early-Titled-Tuesday-Blitz-February-06-2024"]
[Site "Chess.com"]
[Date "2024.02.06"]
[Round "8"]
[White "Kotofeyca"]
[Black "jaskol95"]
[Result "1-0"]
[WhiteElo "2431"]
[BlackElo "2576"]
[TimeControl "180+1"]
[EndTime "9:29:56 PST"]
[Termination "Kotofeyca won by checkmate"]

1. d4 {[%clk 0:03:00.9]} 1... d5 {[%clk 0:02:59.8]} 2. c4 {[%clk 0:02:58.3]}
2... e5 {[%clk 0:02:59.9]} 3. dxe5 {[%clk 0:02:56.5]} 3... d4 {[%clk 0:03:00.2]}
4. Nf3 {[%clk 0:02:55.1]} 4... Nc6 {[%clk 0:03:00.6]} 5. g3 {[%clk 0:02:55.2]}
5... Be6 {[%clk 0:02:56.5]} 6. Nbd2 {[%clk 0:02:54.1]} 6... Qd7 {[%clk
0:02:53.6]} 7. Qa4 {[%clk 0:02:50.5]} 7... O-O-O {[%clk 0:02:20.4]} 8. a3 {[%clk
0:02:46.1]} 8... Kb8 {[%clk 0:02:14.3]} 9. b4 {[%clk 0:02:18.8]} 9... Nxe5
{[%clk 0:02:10.1]} 10. Qxd7 {[%clk 0:02:17.3]} 10... Nxf3+ {[%clk 0:02:08.5]}
11. Nxf3 {[%clk 0:02:17.2]} 11... Rxd7 {[%clk 0:02:02.5]} 12. c5 {[%clk
0:02:11.5]} 12... g6 {[%clk 0:01:26.1]} 13. Bb2 {[%clk 0:02:10]} 13... Bg7
{[%clk 0:01:26.3]} 14. O-O-O {[%clk 0:02:08.1]} 14... Ne7 {[%clk 0:01:23.3]} 15.
Nxd4 {[%clk 0:01:59.7]} 15... Rhd8 {[%clk 0:01:21.4]} 16. e3 {[%clk 0:01:57.8]}
16... Bd5 {[%clk 0:01:21.6]} 17. Rg1 {[%clk 0:01:48.5]} 17... Bf3 {[%clk
0:01:06.1]} 18. Bh3 {[%clk 0:01:00.2]} 18... Bxd1 {[%clk 0:00:59]} 19. Bxd7
{[%clk 0:00:59.2]} 19... Rxd7 {[%clk 0:00:53.1]} 20. Rxd1 {[%clk 0:00:57.5]}
20... Kc8 {[%clk 0:00:52.8]} 21. Kc2 {[%clk 0:00:52.6]} 21... c6 {[%clk
0:00:49.2]} 22. h4 {[%clk 0:00:46.5]} 22... h5 {[%clk 0:00:48.2]} 23. Bc3 {[%clk
0:00:38.5]} 23... Nd5 {[%clk 0:00:47.9]} 24. Rd3 {[%clk 0:00:36.9]} 24... Re7
{[%clk 0:00:42.2]} 25. Bb2 {[%clk 0:00:34.4]} 25... Nc7 {[%clk 0:00:33.3]} 26.
Nf3 {[%clk 0:00:32.7]} 26... Bxb2 {[%clk 0:00:32.9]} 27. Kxb2 {[%clk 0:00:33.6]}
27... a5 {[%clk 0:00:32.3]} 28. Kb3 {[%clk 0:00:30.5]} 28... axb4 {[%clk
0:00:32.4]} 29. axb4 {[%clk 0:00:31.4]} 29... Nd5 {[%clk 0:00:30.6]} 30. Kc4
{[%clk 0:00:28.5]} 30... Kc7 {[%clk 0:00:27.2]} 31. Nd4 {[%clk 0:00:26.5]} 31...
Re8 {[%clk 0:00:26.2]} 32. Ra3 {[%clk 0:00:26.3]} 32... b5+ {[%clk 0:00:22.1]}
33. cxb6+ {[%clk 0:00:24.1]} 33... Nxb6+ {[%clk 0:00:22.5]} 34. Kd3 {[%clk
0:00:20.6]} 34... Kb7 {[%clk 0:00:22.3]} 35. Rc3 {[%clk 0:00:19.4]} 35... Rc8
{[%clk 0:00:16.9]} 36. b5 {[%clk 0:00:17.5]} 36... c5 {[%clk 0:00:14.4]} 37. Nc6
{[%clk 0:00:15.5]} 37... c4+ {[%clk 0:00:14.4]} 38. Kd4 {[%clk 0:00:14.9]} 38...
Rc7 {[%clk 0:00:14.3]} 39. Rc1 {[%clk 0:00:12.8]} 39... Rd7+ {[%clk 0:00:14.7]}
40. Kc5 {[%clk 0:00:12.5]} 40... Rd5+ {[%clk 0:00:14.7]} 41. Kb4 {[%clk
0:00:12.5]} 41... Rd2 {[%clk 0:00:14.8]} 42. Ra1 {[%clk 0:00:12.1]} 42... Rb2+
{[%clk 0:00:15.2]} 43. Kc5 {[%clk 0:00:11.2]} 43... Nd7+ {[%clk 0:00:15.3]} 44.
Kd6 {[%clk 0:00:11.4]} 44... Rxb5 {[%clk 0:00:11.3]} 45. Nd8+ {[%clk 0:00:10.7]}
45... Kc8 {[%clk 0:00:10.3]} 46. Ra8+ {[%clk 0:00:10.7]} 46... Nb8 {[%clk
0:00:10.9]} 47. Nc6 {[%clk 0:00:10.8]} 47... c3 {[%clk 0:00:11.3]} 48. Nxb8
{[%clk 0:00:10.1]} 48... c2 {[%clk 0:00:10.6]} 49. Nd7+ {[%clk 0:00:08.8]} 49...
Kb7 {[%clk 0:00:10.8]} 50. Rb8+ {[%clk 0:00:08.8]} 50... Ka6 {[%clk 0:00:11.3]}
51. Rc8 {[%clk 0:00:08.8]} 51... Rb2 {[%clk 0:00:07.1]} 52. Ke7 {[%clk
0:00:08.9]} 52... Kb5 {[%clk 0:00:06.9]} 53. Ne5 {[%clk 0:00:08.7]} 53... Ka4
{[%clk 0:00:06.6]} 54. Nd3 {[%clk 0:00:08.4]} 54... Ra2 {[%clk 0:00:05.4]} 55.
Nc1 {[%clk 0:00:08]} 55... Rb2 {[%clk 0:00:05.5]} 56. Nd3 {[%clk 0:00:08.4]}
56... Ra2 {[%clk 0:00:05.8]} 57. Kxf7 {[%clk 0:00:08.8]} 57... c1=Q {[%clk
0:00:02.3]} 58. Nxc1 {[%clk 0:00:08.8]} 58... Rxf2+ {[%clk 0:00:02.4]} 59. Kxg6
{[%clk 0:00:09.2]} 59... Rf3 {[%clk 0:00:03.3]} 60. Kxh5 {[%clk 0:00:08.4]}
60... Rxg3 {[%clk 0:00:03.8]} 61. Re8 {[%clk 0:00:08.1]} 61... Kb5 {[%clk
0:00:03.5]} 62. Nd3 {[%clk 0:00:08.7]} 62... Kc4 {[%clk 0:00:03.6]} 63. Nf4
{[%clk 0:00:09.4]} 63... Kc5 {[%clk 0:00:03.4]} 64. Ne6+ {[%clk 0:00:09]} 64...
Kd6 {[%clk 0:00:03.7]} 65. Ng5 {[%clk 0:00:09.9]} 65... Kd7 {[%clk 0:00:03.7]}
66. Re6 {[%clk 0:00:08.5]} 66... Rg1 {[%clk 0:00:03.7]} 67. Kg6 {[%clk
0:00:08.7]} 67... Rh1 {[%clk 0:00:03.9]} 68. h5 {[%clk 0:00:09.3]} 68... Rg1
{[%clk 0:00:04.3]} 69. h6 {[%clk 0:00:09.9]} 69... Rh1 {[%clk 0:00:04.8]} 70. h7
{[%clk 0:00:10.5]} 70... Rh2 {[%clk 0:00:05.2]} 71. Kg7 {[%clk 0:00:08.9]} 71...
Rg2 {[%clk 0:00:05.1]} 72. Rg6 {[%clk 0:00:09.2]} 72... Re2 {[%clk 0:00:04.1]}
73. h8=Q {[%clk 0:00:09.6]} 73... Rxe3 {[%clk 0:00:05]} 74. Qg8 {[%clk
0:00:09.6]} 74... Re7+ {[%clk 0:00:05.2]} 75. Nf7 {[%clk 0:00:09.6]} 75... Kc7
{[%clk 0:00:04.9]} 76. Qd8+ {[%clk 0:00:10]} 76... Kb7 {[%clk 0:00:04.9]} 77.
Qxe7+ {[%clk 0:00:10.3]} 77... Kc8 {[%clk 0:00:05.8]} 78. Rh6 {[%clk 0:00:10.3]}
78... Kb8 {[%clk 0:00:06.7]} 79. Rh8# {[%clk 0:00:10.9]} 1-0

[Event "Early-Titled-Tuesday-Blitz-February-06-2024"]
[Site "Chess.com"]
[Date "2024.02.06"]
[Round "8"]
[White "Rikikits"]
[Black "Marcan2b"]
[Result "1/2-1/2"]
[WhiteElo "2857"]
[BlackElo "3016"]
[TimeControl "180+1"]
[EndTime "9:30:02 PST"]
[Termination "Game drawn - insufficient material"]

1. d4 {[%clk 0:03:00.9]} 1... Nf6 {[%clk 0:02:57]} 2. Nf3 {[%clk 0:02:59.9]}
2... c5 {[%clk 0:02:56.2]} 3. d5 {[%clk 0:02:59.3]} 3... g6 {[%clk 0:02:55.9]}
4. Nc3 {[%clk 0:02:59.5]} 4... d6 {[%clk 0:02:55.8]} 5. e4 {[%clk 0:02:59.7]}
5... Bg7 {[%clk 0:02:56.7]} 6. Bb5+ {[%clk 0:02:59.1]} 6... Bd7 {[%clk
0:02:56.1]} 7. a4 {[%clk 0:02:59]} 7... a6 {[%clk 0:02:55.9]} 8. Be2 {[%clk
0:02:57.3]} 8... Bg4 {[%clk 0:02:55.9]} 9. Nd2 {[%clk 0:02:47.1]} 9... Bxe2
{[%clk 0:02:56.8]} 10. Qxe2 {[%clk 0:02:47.8]} 10... Nbd7 {[%clk 0:02:57.5]} 11.
Nc4 {[%clk 0:02:47.6]} 11... O-O {[%clk 0:02:57]} 12. O-O {[%clk 0:02:47.4]}
12... Nb6 {[%clk 0:02:56]} 13. Ne3 {[%clk 0:02:20.6]} 13... e6 {[%clk
0:02:55.3]} 14. a5 {[%clk 0:02:18.6]} 14... Nbd7 {[%clk 0:02:55]} 15. dxe6
{[%clk 0:02:08]} 15... fxe6 {[%clk 0:02:55.9]} 16. Rd1 {[%clk 0:02:08.3]} 16...
Qe7 {[%clk 0:02:55.6]} 17. Nc4 {[%clk 0:02:05.9]} 17... Ne8 {[%clk 0:02:54.3]}
18. Be3 {[%clk 0:01:55.7]} 18... Ne5 {[%clk 0:02:51]} 19. Na4 {[%clk 0:01:39.3]}
19... Nxc4 {[%clk 0:02:40.7]} 20. Qxc4 {[%clk 0:01:40.2]} 20... Be5 {[%clk
0:02:41]} 21. g3 {[%clk 0:01:27]} 21... g5 {[%clk 0:02:38.8]} 22. Nb6 {[%clk
0:01:24.5]} 22... Rd8 {[%clk 0:02:35]} 23. c3 {[%clk 0:01:12.3]} 23... Ng7
{[%clk 0:02:31]} 24. Qe2 {[%clk 0:01:08.7]} 24... Bf6 {[%clk 0:02:19]} 25. Rd2
{[%clk 0:01:06.3]} 25... Qc7 {[%clk 0:02:14.1]} 26. Rad1 {[%clk 0:01:05.3]}
26... Be7 {[%clk 0:02:14.8]} 27. Qc4 {[%clk 0:00:55.7]} 27... Qc6 {[%clk
0:02:12.6]} 28. h3 {[%clk 0:00:36.1]} 28... h6 {[%clk 0:02:07.5]} 29. b4 {[%clk
0:00:28.9]} 29... cxb4 {[%clk 0:02:04.8]} 30. Qxc6 {[%clk 0:00:29.8]} 30... bxc6
{[%clk 0:02:03.8]} 31. cxb4 {[%clk 0:00:30.4]} 31... d5 {[%clk 0:02:04.3]} 32.
Bc5 {[%clk 0:00:29.5]} 32... Bxc5 {[%clk 0:01:42.1]} 33. bxc5 {[%clk 0:00:30.4]}
33... Ne8 {[%clk 0:01:40.3]} 34. Nc4 {[%clk 0:00:28.6]} 34... Rc8 {[%clk
0:01:36.4]} 35. Ne5 {[%clk 0:00:25.9]} 35... Nf6 {[%clk 0:01:35.5]} 36. exd5
{[%clk 0:00:23.1]} 36... exd5 {[%clk 0:01:36.4]} 37. Rb2 {[%clk 0:00:20.2]}
37... Ne4 {[%clk 0:01:36.6]} 38. Rb7 {[%clk 0:00:16.3]} 38... Rxf2 {[%clk
0:01:20.9]} 39. Rdb1 {[%clk 0:00:09.3]} 39... Rcf8 {[%clk 0:01:09.1]} 40. Nxc6
{[%clk 0:00:06.3]} 40... R2f6 {[%clk 0:00:15.1]} 41. Ne7+ {[%clk 0:00:06.4]}
41... Kh8 {[%clk 0:00:15.6]} 42. Nxd5 {[%clk 0:00:06.5]} 42... Rf3 {[%clk
0:00:15]} 43. Rb8 {[%clk 0:00:06.4]} 43... Nxc5 {[%clk 0:00:12.8]} 44. Rxf8+
{[%clk 0:00:05.8]} 44... Rxf8 {[%clk 0:00:13.7]} 45. Rb6 {[%clk 0:00:05.5]}
45... Rf3 {[%clk 0:00:11.9]} 46. Kg2 {[%clk 0:00:03.6]} 46... Rd3 {[%clk
0:00:11.9]} 47. Rxh6+ {[%clk 0:00:04.1]} 47... Kg7 {[%clk 0:00:11.6]} 48. Rd6
{[%clk 0:00:04.4]} 48... Ne4 {[%clk 0:00:11.1]} 49. Rd7+ {[%clk 0:00:04.1]}
49... Kf8 {[%clk 0:00:11.5]} 50. Nb6 {[%clk 0:00:04.4]} 50... Rxg3+ {[%clk
0:00:10.9]} 51. Kh2 {[%clk 0:00:05]} 51... Ra3 {[%clk 0:00:11.5]} 52. Rd4 {[%clk
0:00:05.2]} 52... Ra2+ {[%clk 0:00:10.6]} 53. Kg1 {[%clk 0:00:05]} 53... Ng3
{[%clk 0:00:09.7]} 54. Rd5 {[%clk 0:00:05]} 54... Ne2+ {[%clk 0:00:09.5]} 55.
Kf1 {[%clk 0:00:05.1]} 55... Ng3+ {[%clk 0:00:09.5]} 56. Ke1 {[%clk 0:00:04.9]}
56... Ne4 {[%clk 0:00:08.5]} 57. Re5 {[%clk 0:00:05.5]} 57... Nc3 {[%clk
0:00:04.8]} 58. Rxg5 {[%clk 0:00:05.6]} 58... Kf7 {[%clk 0:00:05.5]} 59. Kf1
{[%clk 0:00:05.7]} 59... Ne4 {[%clk 0:00:04.3]} 60. Re5 {[%clk 0:00:05.4]} 60...
Nd2+ {[%clk 0:00:05]} 61. Kf2 {[%clk 0:00:01.5]} 61... Nb3+ {[%clk 0:00:02.7]}
62. Re2 {[%clk 0:00:02.4]} 62... Rxa5 {[%clk 0:00:03.1]} 63. Nc4 {[%clk
0:00:02.2]} 63... Rf5+ {[%clk 0:00:03.6]} 64. Ke1 {[%clk 0:00:02.7]} 64... Nc5
{[%clk 0:00:04.3]} 65. Kd2 {[%clk 0:00:01.9]} 65... Kf6 {[%clk 0:00:05.2]} 66.
Ne3 {[%clk 0:00:01.5]} 66... Rf3 {[%clk 0:00:05]} 67. Ng4+ {[%clk 0:00:02.4]}
67... Kg5 {[%clk 0:00:05.3]} 68. Re3 {[%clk 0:00:02.5]} 68... Rf5 {[%clk
0:00:04.8]} 69. Re5 {[%clk 0:00:02.2]} 69... Nd7 {[%clk 0:00:03.5]} 70. Rxf5+
{[%clk 0:00:02.7]} 70... Kxf5 {[%clk 0:00:04.4]} 71. Ne3+ {[%clk 0:00:03.3]}
71... Ke4 {[%clk 0:00:04.8]} 72. Nc4 {[%clk 0:00:04.2]} 72... Nc5 {[%clk
0:00:05.1]} 73. Nb2 {[%clk 0:00:05]} 73... Kd4 {[%clk 0:00:05.6]} 74. Kc2 {[%clk
0:00:05.2]} 74... a5 {[%clk 0:00:06.3]} 75. h4 {[%clk 0:00:06.1]} 75... Ne4
{[%clk 0:00:06.7]} 76. h5 {[%clk 0:00:06.6]} 76... Ng5 {[%clk 0:00:07.4]} 77. h6
{[%clk 0:00:07.5]} 77... Nh7 {[%clk 0:00:07.2]} 78. Kb3 {[%clk 0:00:08.4]} 78...
Ke5 {[%clk 0:00:07.7]} 79. Ka4 {[%clk 0:00:09]} 79... Kf6 {[%clk 0:00:08.6]} 80.
Kxa5 {[%clk 0:00:09.9]} 80... Kg6 {[%clk 0:00:09.5]} 81. Na4 {[%clk 0:00:09.5]}
81... Kxh6 {[%clk 0:00:10.4]} 1/2-1/2

[Event "Early-Titled-Tuesday-Blitz-February-06-2024"]
[Site "Chess.com"]
[Date "2024.02.06"]
[Round "8"]
[White "CFalcons8"]
[Black "andrzej"]
[Result "1-0"]
[WhiteElo "2335"]
[BlackElo "2421"]
[TimeControl "180+1"]
[EndTime "9:30:08 PST"]
[Termination "CFalcons8 won by checkmate"]

1. e4 {[%clk 0:02:21.1]} 1... e5 {[%clk 0:02:58.4]} 2. Nf3 {[%clk 0:02:21.1]}
2... Nf6 {[%clk 0:02:59]} 3. Nxe5 {[%clk 0:02:21.1]} 3... d6 {[%clk 0:02:59.6]}
4. Nf3 {[%clk 0:02:21.8]} 4... Nxe4 {[%clk 0:03:00.2]} 5. Nc3 {[%clk 0:02:22.6]}
5... Nxc3 {[%clk 0:03:00.6]} 6. dxc3 {[%clk 0:02:23.5]} 6... Be7 {[%clk
0:03:01.2]} 7. Be3 {[%clk 0:02:23.9]} 7... Nd7 {[%clk 0:03:01.8]} 8. Qd2 {[%clk
0:02:24.4]} 8... Ne5 {[%clk 0:03:02.5]} 9. Nd4 {[%clk 0:02:23.4]} 9... O-O
{[%clk 0:02:59.7]} 10. h3 {[%clk 0:02:23.3]} 10... c5 {[%clk 0:02:56.9]} 11. Nb3
{[%clk 0:02:20.2]} 11... a5 {[%clk 0:02:46.2]} 12. f4 {[%clk 0:02:15.9]} 12...
Nc6 {[%clk 0:02:45]} 13. a4 {[%clk 0:02:13.4]} 13... Bh4+ {[%clk 0:02:43.2]} 14.
Kd1 {[%clk 0:02:08.9]} 14... Re8 {[%clk 0:02:40.3]} 15. Bb5 {[%clk 0:02:05.1]}
15... Bf5 {[%clk 0:02:36]} 16. Kc1 {[%clk 0:02:03.5]} 16... Qe7 {[%clk
0:02:31.1]} 17. Bf2 {[%clk 0:01:59.2]} 17... Bxf2 {[%clk 0:02:28.3]} 18. Qxf2
{[%clk 0:02:00.1]} 18... h6 {[%clk 0:02:03]} 19. g4 {[%clk 0:01:58.4]} 19... Be4
{[%clk 0:01:58.9]} 20. Re1 {[%clk 0:01:57.7]} 20... Qf6 {[%clk 0:01:58.9]} 21.
Nd2 {[%clk 0:01:53.5]} 21... Bh7 {[%clk 0:01:50.7]} 22. Rxe8+ {[%clk 0:01:41.4]}
22... Rxe8 {[%clk 0:01:50.1]} 23. Bd3 {[%clk 0:01:40.8]} 23... Bxd3 {[%clk
0:01:46]} 24. cxd3 {[%clk 0:01:41.7]} 24... Ne5 {[%clk 0:01:44.2]} 25. Kc2
{[%clk 0:01:39.3]} 25... Ng6 {[%clk 0:01:31]} 26. f5 {[%clk 0:01:32.2]} 26...
Ne5 {[%clk 0:01:31]} 27. Ne4 {[%clk 0:01:32.2]} 27... Qd8 {[%clk 0:01:24.3]} 28.
f6 {[%clk 0:01:29.3]} 28... Nxd3 {[%clk 0:01:07.8]} 29. Kxd3 {[%clk 0:01:27.9]}
29... c4+ {[%clk 0:01:08.3]} 30. Kxc4 {[%clk 0:01:16.4]} 30... d5+ {[%clk
0:01:03.8]} 31. Kb3 {[%clk 0:01:15.9]} 31... dxe4 {[%clk 0:01:03.1]} 32. fxg7
{[%clk 0:01:03.4]} 32... Qd5+ {[%clk 0:01:02.9]} 33. Ka3 {[%clk 0:01:03.9]}
33... e3 {[%clk 0:01:02.4]} 34. Qe2 {[%clk 0:00:59.1]} 34... Qc5+ {[%clk
0:00:56.9]} 35. Ka2 {[%clk 0:00:59.1]} 35... Rd8 {[%clk 0:00:57.4]} 36. Re1
{[%clk 0:00:53.4]} 36... Re8 {[%clk 0:00:56.9]} 37. Qb5 {[%clk 0:00:50.2]} 37...
Qxb5 {[%clk 0:00:53.5]} 38. axb5 {[%clk 0:00:51]} 38... Kxg7 {[%clk 0:00:53.9]}
39. Kb3 {[%clk 0:00:51.7]} 39... h5 {[%clk 0:00:48.7]} 40. gxh5 {[%clk
0:00:42.2]} 40... f5 {[%clk 0:00:48.5]} 41. Kc2 {[%clk 0:00:42]} 41... f4 {[%clk
0:00:48.5]} 42. Kd3 {[%clk 0:00:41.8]} 42... Re5 {[%clk 0:00:42]} 43. c4 {[%clk
0:00:30.7]} 43... b6 {[%clk 0:00:41.4]} 44. Ke2 {[%clk 0:00:29]} 44... Kf6
{[%clk 0:00:38.2]} 45. Kf3 {[%clk 0:00:21.5]} 45... Kf5 {[%clk 0:00:38.5]} 46.
h6 {[%clk 0:00:20.3]} 46... Re7 {[%clk 0:00:35.6]} 47. Rd1 {[%clk 0:00:17.9]}
47... Rc7 {[%clk 0:00:19.3]} 48. Rd4 {[%clk 0:00:16.8]} 48... Re7 {[%clk
0:00:05.4]} 49. Rxf4+ {[%clk 0:00:16.6]} 49... Kg6 {[%clk 0:00:05.9]} 50. Rg4+
{[%clk 0:00:16.8]} 50... Kxh6 {[%clk 0:00:05.9]} 51. Ke2 {[%clk 0:00:14.9]}
51... a4 {[%clk 0:00:06.3]} 52. Rg8 {[%clk 0:00:13]} 52... Re4 {[%clk
0:00:03.4]} 53. Rc8 {[%clk 0:00:10.3]} 53... Kh5 {[%clk 0:00:01.8]} 54. Rc6
{[%clk 0:00:08.2]} 54... Kh4 {[%clk 0:00:02.3]} 55. Rh6+ {[%clk 0:00:08.2]}
55... Kg5 {[%clk 0:00:02.3]} 56. Rxb6 {[%clk 0:00:08.1]} 56... Rxc4 {[%clk
0:00:02.5]} 57. Kxe3 {[%clk 0:00:08.7]} 57... Rb4 {[%clk 0:00:02.7]} 58. Rb8
{[%clk 0:00:04.5]} 58... Rb3+ {[%clk 0:00:02.2]} 59. Kd4 {[%clk 0:00:04.2]}
59... Rxh3 {[%clk 0:00:02.5]} 60. b6 {[%clk 0:00:04.3]} 60... Rb3 {[%clk
0:00:02.7]} 61. b7 {[%clk 0:00:04.9]} 61... Rxb2 {[%clk 0:00:01.1]} 62. Rg8+
{[%clk 0:00:04.9]} 62... Kf6 {[%clk 0:00:01.7]} 63. b8=Q {[%clk 0:00:05.8]}
63... Rxb8 {[%clk 0:00:02]} 64. Rxb8 {[%clk 0:00:06.7]} 64... a3 {[%clk
0:00:01.8]} 65. Ra8 {[%clk 0:00:07.6]} 65... a2 {[%clk 0:00:02]} 66. Rxa2 {[%clk
0:00:08.5]} 66... Ke6 {[%clk 0:00:02.5]} 67. Re2+ {[%clk 0:00:09]} 67... Kd6
{[%clk 0:00:02.7]} 68. Re5 {[%clk 0:00:09.9]} 68... Kd7 {[%clk 0:00:03.2]} 69.
Kc5 {[%clk 0:00:10]} 69... Kd8 {[%clk 0:00:04.1]} 70. Kc6 {[%clk 0:00:09.8]}
70... Kc8 {[%clk 0:00:05]} 71. Re8# {[%clk 0:00:10.7]} 1-0

[Event "Early-Titled-Tuesday-Blitz-February-06-2024"]
[Site "Chess.com"]
[Date "2024.02.06"]
[Round "8"]
[White "Iskusnyh"]
[Black "SHIVACalypso"]
[Result "1-0"]
[WhiteElo "2648"]
[BlackElo "2505"]
[TimeControl "180+1"]
[EndTime "9:30:10 PST"]
[Termination "Iskusnyh won by checkmate"]

1. d4 {[%clk 0:03:00.9]} 1... Nf6 {[%clk 0:02:59.5]} 2. c4 {[%clk 0:02:59.5]}
2... e6 {[%clk 0:03:00.1]} 3. g3 {[%clk 0:02:58.1]} 3... Bb4+ {[%clk 0:02:55.3]}
4. Nd2 {[%clk 0:02:56.8]} 4... d5 {[%clk 0:02:52]} 5. Bg2 {[%clk 0:02:56.3]}
5... O-O {[%clk 0:02:47]} 6. Nf3 {[%clk 0:02:55.3]} 6... dxc4 {[%clk 0:02:43.6]}
7. Qc2 {[%clk 0:02:52.9]} 7... Nc6 {[%clk 0:02:39.6]} 8. Qxc4 {[%clk 0:02:46.6]}
8... Ne4 {[%clk 0:02:28.1]} 9. e3 {[%clk 0:02:00.1]} 9... e5 {[%clk 0:02:09.7]}
10. d5 {[%clk 0:01:46.6]} 10... Nxd2 {[%clk 0:02:08.5]} 11. Nxd2 {[%clk
0:01:39.8]} 11... Bxd2+ {[%clk 0:02:08.1]} 12. Bxd2 {[%clk 0:01:38.8]} 12... Ne7
{[%clk 0:02:09]} 13. Bc3 {[%clk 0:01:07.9]} 13... c6 {[%clk 0:02:03.5]} 14. dxc6
{[%clk 0:01:01.2]} 14... Nxc6 {[%clk 0:02:04.4]} 15. O-O {[%clk 0:00:56.8]}
15... Be6 {[%clk 0:02:03.9]} 16. Qb5 {[%clk 0:00:56.6]} 16... Qb6 {[%clk
0:01:55.3]} 17. Qxb6 {[%clk 0:00:55.4]} 17... axb6 {[%clk 0:01:56.2]} 18. a3
{[%clk 0:00:54]} 18... Rfd8 {[%clk 0:01:54.7]} 19. Rfd1 {[%clk 0:00:53.3]} 19...
f6 {[%clk 0:01:55.2]} 20. h4 {[%clk 0:00:49.5]} 20... Bb3 {[%clk 0:01:54.6]} 21.
Rxd8+ {[%clk 0:00:47.1]} 21... Rxd8 {[%clk 0:01:55.5]} 22. Rc1 {[%clk
0:00:45.5]} 22... Kf7 {[%clk 0:01:54.2]} 23. Kf1 {[%clk 0:00:41.7]} 23... Bd5
{[%clk 0:01:47]} 24. f3 {[%clk 0:00:32.8]} 24... Bc4+ {[%clk 0:01:44.8]} 25. Kf2
{[%clk 0:00:32.5]} 25... Bb3 {[%clk 0:01:36.4]} 26. Bf1 {[%clk 0:00:31.4]} 26...
g6 {[%clk 0:01:22.2]} 27. g4 {[%clk 0:00:30.7]} 27... h5 {[%clk 0:01:16.4]} 28.
gxh5 {[%clk 0:00:29.8]} 28... gxh5 {[%clk 0:01:16.6]} 29. Be2 {[%clk 0:00:29.3]}
29... Rg8 {[%clk 0:01:12.4]} 30. Rh1 {[%clk 0:00:21.2]} 30... Bd5 {[%clk
0:01:07.2]} 31. Rd1 {[%clk 0:00:19.2]} 31... Ke6 {[%clk 0:01:00.1]} 32. Bd3
{[%clk 0:00:18.8]} 32... Ne7 {[%clk 0:00:56]} 33. Bb5 {[%clk 0:00:16.9]} 33...
Bc6 {[%clk 0:00:49.3]} 34. Bc4+ {[%clk 0:00:16.3]} 34... Bd5 {[%clk 0:00:49.8]}
35. Rxd5 {[%clk 0:00:15.9]} 35... Nxd5 {[%clk 0:00:50.7]} 36. e4 {[%clk
0:00:15.3]} 36... Rg7 {[%clk 0:00:34]} 37. Bxd5+ {[%clk 0:00:15.5]} 37... Kd6
{[%clk 0:00:33.3]} 38. a4 {[%clk 0:00:14.5]} 38... Kc5 {[%clk 0:00:32.5]} 39.
b4+ {[%clk 0:00:14.6]} 39... Kd6 {[%clk 0:00:32.9]} 40. Bd2 {[%clk 0:00:13.3]}
40... Rc7 {[%clk 0:00:30.8]} 41. Be3 {[%clk 0:00:12.5]} 41... Rc2+ {[%clk
0:00:25.8]} 42. Kg3 {[%clk 0:00:10.9]} 42... Rb2 {[%clk 0:00:26]} 43. a5 {[%clk
0:00:07.3]} 43... bxa5 {[%clk 0:00:17.3]} 44. Bc5+ {[%clk 0:00:06.9]} 44... Kc7
{[%clk 0:00:16.9]} 45. bxa5 {[%clk 0:00:07.5]} 45... Rb5 {[%clk 0:00:14.5]} 46.
Bb6+ {[%clk 0:00:08.4]} 46... Kc8 {[%clk 0:00:13.6]} 47. Be6+ {[%clk 0:00:08.6]}
47... Kb8 {[%clk 0:00:13.4]} 48. Bf7 {[%clk 0:00:09.1]} 48... Rb1 {[%clk
0:00:08.5]} 49. Bxh5 {[%clk 0:00:08.1]} 49... Rh1 {[%clk 0:00:09]} 50. Bg4
{[%clk 0:00:07.3]} 50... Rd1 {[%clk 0:00:03.4]} 51. h5 {[%clk 0:00:06.9]} 51...
Rh1 {[%clk 0:00:04]} 52. Bh3 {[%clk 0:00:06.2]} 52... Rc1 {[%clk 0:00:03.4]} 53.
h6 {[%clk 0:00:06.4]} 53... Rd1 {[%clk 0:00:04.3]} 54. h7 {[%clk 0:00:04.6]}
54... Rd8 {[%clk 0:00:04.5]} 55. Be6 {[%clk 0:00:05]} 55... Rh8 {[%clk 0:00:04]}
56. Bg8 {[%clk 0:00:05.5]} 56... Kc8 {[%clk 0:00:03.7]} 57. Kg4 {[%clk
0:00:06.2]} 57... Kd7 {[%clk 0:00:04.4]} 58. Kh5 {[%clk 0:00:05.3]} 58... Ke8
{[%clk 0:00:04.3]} 59. Kg6 {[%clk 0:00:05.8]} 59... Kf8 {[%clk 0:00:04.4]} 60.
Bc5+ {[%clk 0:00:05.8]} 60... Ke8 {[%clk 0:00:04.4]} 61. Kg7 {[%clk 0:00:06.7]}
61... f5 {[%clk 0:00:04.3]} 62. Kxh8 {[%clk 0:00:06]} 62... f4 {[%clk
0:00:05.2]} 63. Kg7 {[%clk 0:00:02.4]} 63... b6 {[%clk 0:00:06.1]} 64. h8=Q
{[%clk 0:00:02.5]} 64... Kd7 {[%clk 0:00:06.9]} 65. Bd5 {[%clk 0:00:01.3]} 65...
bxc5 {[%clk 0:00:06]} 66. Kf6 {[%clk 0:00:01.7]} 66... Kd6 {[%clk 0:00:06.9]}
67. Qg7 {[%clk 0:00:00.7]} 67... c4 {[%clk 0:00:06.4]} 68. Qe7# {[%clk
0:00:00.7]} 1-0